bitfinex/quotes_ETHUSD_20250724
["timestamp","ask_amount","ask_price","bid_price","bid_amount"]
[1753391557926,5.0,3730.6,3730.3,5.3814]
[1753391558094,5.0,3730.6,3730.4,0.9484]
[1753391558294,5.0,3730.6,3730.4,3.62907754]
[1753391558490,3.0,3730.5,3730.4,3.62907754]
[1753391558899,3.0,3730.5,3730.4,0.9484]
[1753391559410,3.0,3730.5,3730.3,7.11373779]
[1753391559808,5.0,3730.6,3730.5,2.68060581]
[1753391560010,8.0,3730.6,3730.5,3.62900581]
[1753391560470,5.0,3730.6,3730.5,5.52217416]
[1753391562166,5.0,3730.6,3730.5,4.44790581]
[1753391566664,5.0,3730.6,3730.5,8.85890581]
[1753391567785,8.0,3730.6,3730.5,8.85890581]
[1753391568057,8.0,3730.6,3730.5,4.44790581]
[1753391568257,8.0,3730.6,3730.5,8.85890581]
[1753391569068,8.0,3730.6,3730.3,2.68170148]
[1753391569069,8.0,3730.6,3730.3,0.001]
[1753391569265,5.0,3730.6,3730.3,0.001]
[1753391569566,5.0,3730.6,3730.4,7.5268653]
[1753391569856,5.0,3730.6,3730.5,3.61220581]
[1753391570158,5.0,3730.6,3730.5,4.40390581]
[1753391570457,5.0,3730.6,3730.5,5.55306945]
[1753391570757,5.0,3730.6,3730.5,9.96006945]
[1753391575313,5.0,3730.6,3730.5,9.96106945]
[1753391575493,5.002,3730.6,3730.5,9.96106945]
[1753391579060,5.002,3730.6,3730.5,10.09546945]
[1753391579691,0.002,3731.4,3731.3,2.68003108]
[1753391579896,0.002,3731.4,3731.3,7.06303108]
[1753391580197,0.002,3731.4,3731.3,8.26263419]
[1753391581282,1e-08,3731.4,3731.3,9.02813419]
[1753391582468,1e-08,3731.7,3731.6,13.42913862]
[1753391582667,1e-08,3731.7,3731.6,7.82231562]
[1753391582899,1e-08,3731.7,3731.6,10.05769775]
[1753391583207,1e-08,3731.7,3731.6,9.61749775]
[1753391583393,1e-08,3731.7,3731.6,10.05769775]
[1753391584980,1e-08,3731.7,3731.6,5.68069775]
[1753391585183,1e-08,3731.7,3731.6,10.05669775]
[1753391586613,1e-08,3731.7,3731.6,10.05269775]
[1753391587482,1e-08,3731.7,3731.6,2.81341562]
[1753391587686,1e-08,3731.7,3731.6,7.18441562]
[1753391588203,1e-08,3731.7,3731.6,14.40943533]
[1753391588405,0.002,3732.1,3732.0,7.1418354]
[1753391588605,0.002,3732.1,3732.0,11.1557374]
[1753391588805,0.002,3732.1,3732.0,12.80724713]
[1753391588992,0.002,3732.1,3732.0,10.43433813]
[1753391591900,0.002,3732.4,3732.3,2.67931302]
[1753391592096,0.002,3732.4,3732.3,7.06131302]
[1753391592429,0.002,3732.4,3732.3,7.99291302]
[1753391592720,0.002,3732.4,3732.3,9.5712182]
[1753391594927,1e-08,3732.4,3732.3,10.3720182]
[1753391595495,1e-08,3732.4,3732.3,19.3445562]
[1753391596040,0.002,3733.4,3733.3,2.67859534]
[1753391596198,0.002,3733.4,3733.3,7.04959534]
[1753391596402,0.002,3733.4,3733.3,7.97989534]
[1753391597929,0.002,3733.4,3733.3,9.91383306]
[1753391598094,0.002,3733.4,3733.3,4.61253306]
[1753391598294,0.002,3733.4,3733.3,7.96619534]
[1753391598635,0.4708,3733.4,3733.3,2.81219534]
[1753391598837,0.4708,3733.4,3733.3,7.04459534]
[1753391599412,0.4708,3733.4,3733.3,4.366]
[1753391599915,0.4708,3733.4,3733.3,7.04459534]
[1753391600094,0.002,3733.4,3733.3,7.04459534]
[1753391600522,0.002,3733.4,3733.3,4.366]
[1753391600746,0.4708,3733.4,3733.3,4.366]
[1753391601229,0.9229,3733.4,3733.3,4.364]
[1753391601540,1.0565,3733.4,3733.3,4.364]
[1753391603336,0.1356,3733.4,3733.3,7.04259534]
[1753391604644,0.002,3733.4,3733.3,8.5116286]
[1753391604803,0.002,3733.4,3733.3,9.0786286]
[1753391605740,1e-08,3733.4,3733.3,9.0786286]
[1753391605937,0.1336,3734.7,3734.6,2.67764974]
[1753391606125,0.1336,3734.7,3734.6,4.349]
[1753391606333,0.6024,3734.7,3734.6,4.349]
[1753391607334,1.0545,3734.7,3734.6,4.347]
[1753391608439,4.6045,3734.7,3734.6,4.347]
[1753391608739,1.6045,3734.7,3734.6,4.347]
[1753391609742,7.28209123,3734.7,3734.6,4.347]
[1753391610308,4.6045,3734.7,3734.6,4.347]
[1753391610708,3.1336,3734.7,3734.6,4.347]
[1753391611338,3.6024,3734.7,3734.6,4.347]
[1753391613861,4.0545,3734.7,3734.6,4.347]
[1753391616766,6.24538631,3734.6,3734.5,4.324]
[1753391617065,7.16628631,3734.6,3734.5,4.324]
[1753391617256,7.29988631,3734.6,3734.5,4.324]
[1753391618842,3.0,3734.3,3733.7,0.1336]
[1753391619042,0.1336,3734.1,3733.8,4.319]
[1753391619571,0.6024,3734.1,3733.8,4.319]
[1753391619969,0.6024,3734.1,3733.8,6.99721951]
[1753391620169,0.1336,3734.1,3733.9,2.67816076]
[1753391620567,0.1336,3734.1,3733.8,6.99721474]
[1753391620940,0.1336,3734.1,3733.8,4.319]
[1753391621140,0.6024,3734.1,3733.8,4.319]
[1753391621341,0.4688,3734.0,3733.8,4.319]
[1753391621564,0.1336,3733.9,3733.8,4.319]
[1753391621873,0.6024,3733.9,3733.8,4.319]
[1753391622693,0.1336,3733.9,3733.8,4.319]
[1753391623175,0.6024,3733.9,3733.8,4.319]
[1753391623769,0.1336,3733.9,3733.8,4.319]
[1753391624470,0.1336,3733.9,3733.8,4.307]
[1753391625175,0.1336,3733.9,3733.3,0.1336]
[1753391625376,1.0153,3734.1,3733.6,2.67831302]
[1753391625563,0.1336,3733.7,3733.6,2.67831302]
[1753391625769,0.1336,3733.7,3733.6,3.14101302]
[1753391626074,0.1336,3733.7,3733.6,0.4627]
[1753391626277,0.1336,3733.7,3733.6,2.67838011]
[1753391626683,0.1336,3733.7,3733.4,6.98545192]
[1753391626889,0.1336,3733.7,3733.4,7.44815192]
[1753391627090,0.1336,3733.7,3733.5,2.67841963]
[1753391627456,0.1336,3733.7,3733.6,2.67838011]
[1753391627657,0.1336,3733.7,3733.6,3.14108011]
[1753391628572,0.1336,3733.7,3733.6,3.61078011]
[1753391628886,0.1336,3733.7,3733.6,7.44808011]
[1753391629061,0.1336,3733.7,3733.6,7.91078011]
[1753391629499,0.0177,3734.5,3733.7,0.7784]
[1753391629684,0.1336,3734.1,3733.8,4.7587]
[1753391629865,0.1336,3734.1,3733.8,6.9741845]
[1753391630403,0.1336,3734.1,3733.9,2.67816151]
[1753391630696,0.1336,3734.1,3734.0,4.297]
[1753391630880,0.552,3734.6,3734.0,4.297]
[1753391631080,0.1336,3734.2,3734.0,4.297]
[1753391631284,0.1336,3734.2,3734.1,2.6780174]
[1753391632712,0.1336,3734.2,3734.0,6.97508397]
[1753391635218,0.1336,3734.2,3734.1,2.67802147]
[1753391638013,0.1336,3734.2,3734.1,3.14072147]
[1753391638887,0.1336,3734.2,3734.1,2.67802147]
[1753391640222,0.1336,3734.2,3734.0,4.297]
[1753391640427,0.1336,3734.2,3734.0,6.97503988]
[1753391640639,0.1336,3734.2,3734.1,2.67802147]
[1753391641513,0.1336,3734.2,3734.1,3.14072147]
[1753391641882,0.1356,3734.2,3734.1,3.14072147]
[1753391642286,0.1356,3734.2,3734.1,2.67802147]
[1753391642722,0.002,3734.2,3734.1,3.61042147]
[1753391642921,0.002,3734.2,3734.1,4.80257429]
[1753391644225,0.002,3734.6,3734.5,2.67773463]
[1753391644423,0.002,3734.6,3734.5,7.74523463]
[1753391644816,0.002,3734.6,3734.5,8.67763463]
[1753391644990,0.002,3734.6,3734.5,10.11519949]
[1753391647034,0.0177,3734.5,3733.5,0.69585506]
[1753391647184,0.002,3734.6,3732.1,11.75582154]
[1753391647185,0.002,3734.6,3733.6,6.0205]
[1753391647386,0.002,3734.6,3733.8,2.67823664]
[1753391647621,0.002,3734.6,3733.7,0.9324]
[1753391647833,3.002,3734.6,3733.8,7.14488664]
[1753391648143,3.002,3734.6,3733.9,0.4627]
[1753391648433,2.67967385,3734.6,3734.0,4.293]
[1753391648590,3.14303463,3734.5,3734.0,4.293]
[1753391648789,2.67780676,3734.4,3734.0,4.293]
[1753391649129,0.4653,3734.3,3734.1,4.293]
[1753391649338,0.4653,3734.3,3734.2,4.293]
[1753391649987,6.14317804,3734.3,3734.2,4.293]
[1753391650223,5.67787804,3734.3,3734.2,4.293]
[1753391650428,0.0177,3734.1,3733.4,0.001]
[1753391650641,0.05117526,3734.1,3733.5,4.293]
[1753391650962,3.0,3733.9,3733.5,4.293]
[1753391651315,3.4653,3733.9,3733.5,4.293]
[1753391652226,3.14348224,3733.9,3733.5,4.293]
[1753391652559,0.4653,3733.8,3733.5,4.293]
[1753391653909,3.0,3733.9,3733.5,4.293]
[1753391654341,3.5989,3733.9,3733.5,4.293]
[1753391655240,0.1336,3733.9,3733.5,4.293]
[1753391655554,3.4748,3733.8,3733.5,4.293]
[1753391656249,3.15303666,3733.8,3733.5,4.293]
[1753391656417,3.4748,3733.8,3733.5,4.293]
[1753391656914,0.4748,3733.8,3733.5,4.293]
[1753391657305,3.4748,3733.8,3733.5,4.293]
[1753391657510,0.4748,3733.8,3733.5,4.293]
[1753391658554,0.1336,3733.9,3733.5,4.293]
[1753391658760,0.1336,3733.9,3733.6,0.9511]
[1753391659846,0.1336,3733.9,3733.6,0.4954]
[1753391660145,0.1336,3733.9,3733.5,4.293]
[1753391660146,3.1336,3733.9,3733.5,4.293]
[1753391662386,0.1336,3733.9,3733.5,4.7884]
[1753391662690,3.0,3733.8,3733.5,4.293]
[1753391662886,0.1336,3733.7,3733.5,4.7884]
[1753391663181,0.1336,3733.7,3733.5,4.293]
[1753391664983,3.1336,3733.7,3733.5,4.293]
[1753391665164,0.1336,3733.7,3733.5,4.293]
[1753391665347,0.1336,3733.7,3733.6,4.292]
[1753391665569,0.03347885,3733.7,3733.4,0.001]
[1753391665779,3.0177,3733.6,3733.5,4.292]
[1753391665992,3.52597975,3733.6,3733.5,4.292]
[1753391666284,6.33795986,3733.6,3733.5,4.292]
[1753391666486,6.30448011,3733.6,3733.5,4.292]
[1753391667191,6.22845185,3733.5,3733.4,4.293]
[1753391667492,7.18245185,3733.5,3733.4,4.293]
[1753391667901,1.504,3733.5,3733.4,4.293]
[1753391668115,1.05828064,3733.5,3733.4,4.293]
[1753391668590,3.73673249,3733.5,3733.4,4.293]
[1753391668893,4.05828064,3733.5,3733.4,4.293]
[1753391669407,1.05828064,3733.5,3733.4,4.293]
[1753391670296,3.73673249,3733.5,3733.4,4.293]
[1753391670502,1.05828064,3733.5,3733.4,4.293]
[1753391670800,0.55,3733.5,3733.4,4.293]
[1753391671172,3.1336,3733.6,3733.4,4.293]
[1753391671370,0.1336,3733.6,3733.4,5.6734]
[1753391671574,0.1336,3733.6,3733.5,0.4954]
[1753391673578,0.1336,3733.6,3733.4,4.293]
[1753391674165,0.1336,3733.6,3733.4,4.7487]
[1753391674364,0.1336,3733.6,3733.5,0.4954]
[1753391675188,0.1336,3733.6,3733.4,4.7487]
[1753391675189,0.1336,3733.6,3733.4,4.293]
[1753391675879,0.1336,3733.6,3733.4,4.7884]
[1753391678493,0.1336,3733.6,3733.4,5.2441]
[1753391679600,0.1336,3733.6,3733.4,4.7884]
[1753391680503,0.1336,3733.6,3733.4,7.46687953]
[1753391680711,0.1336,3733.6,3733.4,5.2441]
[1753391681095,0.1336,3733.6,3733.4,4.7884]
[1753391682507,0.1336,3733.6,3733.4,4.293]
[1753391682975,0.1336,3733.6,3733.5,4.289]
[1753391684423,0.1336,3733.6,3733.5,4.7844]
[1753391684610,0.1336,3733.6,3733.5,5.2401]
[1753391684781,0.1336,3733.6,3733.5,4.7844]
[1753391685106,0.1336,3733.6,3733.5,8.7420288]
[1753391685309,0.002,3734.2,3734.0,2.67806908]
[1753391685509,0.002,3734.2,3734.1,6.96602147]
[1753391685895,0.002,3734.2,3734.1,7.91352147]
[1753391686095,0.002,3734.2,3734.1,8.04712147]
[1753391686301,0.002,3734.2,3734.1,9.88744891]
[1753391693810,1e-08,3734.2,3734.1,18.37893791]
[1753391694325,1e-08,3734.2,3734.1,14.26160091]
[1753391697132,1e-08,3734.2,3734.1,9.88744891]
[1753391697308,1e-08,3734.2,3734.1,20.58490091]
[1753391697510,1e-08,3734.2,3734.1,17.20280091]
[1753391698011,1e-08,3734.2,3734.1,14.20580091]
[1753391700321,0.002,3735.0,3734.1,14.20580091]
[1753391700521,1e-08,3734.9,3734.8,3.48771954]
[1753391700829,1e-08,3734.9,3734.8,7.90331954]
[1753391701241,1e-08,3734.9,3734.8,8.85081954]
[1753391701599,1e-08,3735.4,3735.3,2.67716113]
[1753391701824,1e-08,3735.4,3735.3,6.95916113]
[1753391702134,1e-08,3735.8,3735.7,8.13779948]
[1753391702301,1e-08,3735.8,3735.7,12.41879948]
[1753391702505,1e-08,3735.8,3735.7,11.44584048]
[1753391703220,1e-08,3735.8,3735.7,8.80307448]
[1753391703741,1e-08,3735.8,3735.7,23.49868548]
[1753391704053,1e-08,3735.8,3735.7,26.19777724]
[1753391704458,1e-08,3735.8,3735.7,26.19677724]
[1753391708065,0.002,3736.6,3735.7,26.19677724]
[1753391708066,1e-08,3736.6,3736.3,2.67638981]
[1753391708247,1e-08,3736.6,3736.5,2.67630135]
[1753391708551,1e-08,3736.6,3736.5,2.80990135]
[1753391708710,1e-08,3736.6,3736.5,3.96116047]
[1753391708907,1e-08,3736.6,3736.5,4.90866047]
[1753391709651,1e-08,3736.6,3736.5,28.25703647]
[1753391709867,1e-08,3736.6,3736.5,24.46200247]
[1753391710040,1e-08,3736.6,3736.5,19.85003647]
[1753391710228,1e-08,3736.6,3736.5,19.55703647]
[1753391710664,1e-08,3736.6,3736.5,8.86371447]
[1753391710824,1e-08,3736.6,3736.5,9.58172447]
[1753391711020,1e-08,3736.6,3736.5,8.59392447]
[1753391712331,1e-08,3736.6,3736.5,12.87092447]
[1753391713264,1e-08,3736.6,3736.5,12.86992447]
[1753391714755,1e-08,3736.6,3736.5,2.80990135]
[1753391714944,1e-08,3736.6,3736.5,6.95230135]
[1753391715539,1e-08,3736.6,3736.5,6.95130135]
[1753391715739,0.46870001,3736.6,3736.5,6.95130135]
[1753391716193,0.46870001,3736.6,3736.5,2.67630135]
[1753391716343,0.46870001,3736.6,3736.5,6.95130135]
[1753391717280,0.46870001,3736.6,3736.5,2.67630135]
[1753391717467,1.10640001,3736.6,3736.0,0.1336]
[1753391717676,0.4687,3736.5,3736.4,2.67637297]
[1753391717988,0.4687,3736.5,3736.4,6.95037297]
[1753391718781,1e-08,3736.6,3736.5,2.67630135]
[1753391720580,0.46870001,3736.6,3736.5,2.67630135]
[1753391720783,0.97280001,3736.6,3736.5,4.273]
[1753391720952,1.10640001,3736.6,3736.5,4.273]
[1753391722177,4.10640001,3736.6,3736.5,4.273]
[1753391722511,1.10640001,3736.6,3736.5,4.273]
[1753391725511,1.10640001,3736.6,3736.0,0.1336]
[1753391725714,1.10640001,3736.6,3736.1,4.272]
[1753391725715,2.67637377,3736.4,3736.1,4.272]
[1753391726016,0.60115376,3736.5,3735.8,2.67679672]
[1753391726017,0.1336,3736.2,3735.8,2.67679672]
[1753391726238,0.4687,3736.1,3735.9,4.272]
[1753391726398,0.62,3736.2,3736.0,4.272]
[1753391726918,0.62,3736.2,3736.0,2.67664256]
[1753391727121,0.4687,3736.1,3735.9,2.67672017]
[1753391727420,0.4687,3736.1,3735.7,2.67681266]
[1753391727421,0.1336,3736.2,3736.0,4.271]
[1753391727617,0.62,3736.2,3736.0,4.271]
[1753391727920,0.9728,3736.1,3736.0,4.271]
[1753391729283,0.9728,3736.1,3735.6,2.67787453]
[1753391729583,0.1336,3735.9,3735.7,6.94785791]
[1753391729807,0.4687,3735.8,3735.7,6.94785791]
[1753391730018,0.1336,3735.9,3735.8,2.67680282]
[1753391730383,0.6023,3735.9,3735.8,2.67680282]
[1753391731883,0.6023,3735.9,3735.8,6.94780282]
[1753391732085,0.1336,3735.9,3735.8,6.94780282]
[1753391734290,0.6023,3735.9,3735.8,4.271]
[1753391734783,1.0887,3735.9,3735.6,0.001]
[1753391734995,1.0887,3735.9,3735.7,4.269]
[1753391734996,4.55626003,3735.8,3735.7,4.269]
[1753391735292,7.36666285,3735.8,3735.7,4.269]
[1753391735526,7.33320282,3735.8,3735.7,4.269]
[1753391735819,4.6564,3735.8,3735.6,0.001]
[1753391735982,0.03346093,3735.7,3735.6,0.001]
[1753391736189,0.98856093,3735.7,3735.6,4.27]
[1753391736619,3.66543541,3735.7,3735.6,4.27]
[1753391736820,4.53856093,3735.7,3735.6,4.27]
[1753391737633,7.21543541,3735.7,3735.6,4.27]
[1753391737836,7.18197448,3735.7,3735.6,4.27]
[1753391738129,7.19967448,3735.7,3735.6,0.001]
[1753391740667,7.19967448,3735.7,3735.6,1e-08]
[1753391741782,6.24507617,3735.0,3734.9,0.001]
[1753391741924,10.64567617,3735.0,3734.9,0.001]
[1753391742131,11.60077617,3735.0,3734.9,0.001]
[1753391742738,11.60077617,3735.0,3734.2,0.001]
[1753391742739,3.24557804,3734.3,3734.2,0.001]
[1753391742973,6.41265151,3734.3,3734.2,0.001]
[1753391743261,6.84787804,3734.3,3734.2,0.001]
[1753391743431,7.33427804,3734.3,3734.2,0.001]
[1753391748856,6.84787804,3734.3,3734.2,0.001]
[1753391749053,7.30317804,3734.3,3734.2,0.001]
[1753391753769,6.84787804,3734.3,3734.2,0.001]
[1753391754932,7.30317804,3734.3,3734.2,0.001]
[1753391762984,6.37917804,3734.3,3734.2,0.001]
[1753391763181,11.10117804,3734.3,3734.2,0.001]
[1753391766685,11.55647804,3734.3,3734.2,0.001]
[1753391767702,12.13037376,3734.3,3734.2,0.001]
[1753391769556,3.24615185,3733.5,3733.4,0.001]
[1753391769707,6.27963249,3733.5,3733.4,0.001]
[1753391769905,6.37975185,3733.5,3733.4,0.001]
[1753391770146,6.83975185,3733.5,3733.4,0.001]
[1753391770305,6.37975185,3733.5,3733.4,0.001]
[1753391770506,6.83975185,3733.5,3733.4,0.001]
[1753391771713,3.6836,3733.5,3733.4,0.4609]
[1753391772037,3.1336,3733.5,3733.4,0.9201]
[1753391772200,3.6836,3733.5,3733.4,0.9201]
[1753391773738,3.1336,3733.5,3733.4,0.9201]
[1753391773906,3.1336,3733.5,3733.4,1.36150093]
[1753391774106,3.1336,3733.5,3733.4,0.9201]
[1753391774606,6.36205185,3733.5,3733.4,0.001]
[1753391774825,3.6836,3733.5,3733.4,0.001]
[1753391775028,6.85553249,3733.5,3733.4,0.001]
[1753391775228,6.82205185,3733.5,3733.4,0.001]
[1753391775970,7.32385185,3733.5,3733.4,0.001]
[1753391776260,6.36205185,3733.5,3733.4,0.001]
[1753391778591,6.79175185,3733.5,3733.4,0.001]
[1753391779979,6.22852359,3733.4,3733.3,1e-08]
[1753391780182,11.99085016,3733.4,3733.3,1e-08]
[1753391780382,26.49085016,3733.4,3733.3,1e-08]
[1753391781245,26.74051813,3733.4,3733.3,1e-08]
[1753391781984,26.89028849,3733.4,3733.3,1e-08]
[1753391782150,26.74051813,3733.4,3733.3,1e-08]
[1753391782681,26.49085016,3733.4,3733.3,1e-08]
[1753391782984,26.74028313,3733.4,3733.3,1e-08]
[1753391784279,26.49085016,3733.4,3733.3,1e-08]
[1753391784788,26.74002274,3733.4,3733.3,1e-08]
[1753391785154,26.74002274,3733.4,3732.7,0.001]
[1753391785355,6.2295284,3732.0,3731.9,0.001]
[1753391785555,10.6171284,3732.0,3731.9,0.001]
[1753391787210,11.0468284,3732.0,3731.9,0.001]
[1753391787771,11.5309284,3732.0,3731.9,0.001]
[1753391788702,10.6171284,3732.0,3731.9,0.001]
[1753391789265,11.0468284,3732.0,3731.9,0.001]
[1753391790021,10.6171284,3732.0,3731.9,0.001]
[1753391790368,3.1336,3732.0,3731.9,1.7003]
[1753391790786,3.6836,3732.0,3731.9,1.7003]
[1753391790987,5.8131284,3732.0,3731.9,0.001]
[1753391791387,6.3631284,3732.0,3731.9,0.001]
[1753391791571,3.6836,3732.0,3731.9,0.001]
[1753391791770,3.6836,3732.0,3731.9,0.9266]
[1753391796321,3.6836,3732.0,3731.9,1.7312]
[1753391796617,0.6836,3732.0,3731.9,1.7312]
[1753391797190,0.1336,3732.0,3731.9,4.85199308]
[1753391797411,0.1336,3732.1,3732.0,3.4911284]
[1753391797633,0.1336,3732.1,3732.0,4.4167284]
[1753391797828,3.16230151,3733.9,3732.3,2.67926379]
[1753391798116,4.25,3733.3,3732.6,3.49068307]
[1753391798332,0.1336,3732.7,3732.6,0.8116]
[1753391798711,0.6836,3732.7,3732.6,0.8116]
[1753391799131,0.6836,3732.7,3732.6,1.7372]
[1753391799429,0.6836,3732.7,3732.6,0.4961]
[1753391800243,0.55,3732.5,3732.1,0.4961]
[1753391800452,3.03335214,3732.4,3732.1,0.4961]
[1753391800631,0.6836,3732.2,3732.1,0.4961]
[1753391800934,0.6836,3732.2,3732.1,0.9256]
[1753391801829,3.6836,3732.2,3732.1,0.9256]
[1753391802012,0.6836,3732.2,3732.1,0.9256]
[1753391803800,0.1336,3732.2,3732.1,0.9256]
[1753391804313,0.6836,3732.2,3732.1,0.9256]
[1753391806818,3.6836,3732.2,3732.1,0.4961]
[1753391807017,0.6836,3732.2,3732.1,0.4961]
[1753391807513,3.6836,3732.2,3732.1,0.9266]
[1753391808946,3.6836,3732.2,3732.1,0.4305]
[1753391809438,3.22950844,3732.1,3731.9,0.001]
[1753391809739,3.5834941,3732.0,3731.9,0.001]
[1753391810037,3.3966225,3732.0,3731.9,0.001]
[1753391811609,4.1910225,3732.0,3731.9,0.001]
[1753391812465,11.4350225,3732.0,3731.9,0.001]
[1753391812629,11.4015284,3732.0,3731.9,0.001]
[1753391813128,10.9497284,3732.0,3731.9,0.001]
[1753391816657,11.4015284,3732.0,3731.9,0.001]
[1753391817028,11.4015284,3732.0,3731.9,1e-08]
[1753391818245,6.23003108,3731.3,3731.2,1e-08]
[1753391818574,6.23010291,3731.2,3731.1,1e-08]
[1753391818768,7.14040291,3731.2,3731.1,1e-08]
[1753391819130,6.23010291,3731.2,3731.1,1e-08]
[1753391819367,5.68010291,3731.2,3731.1,1e-08]
[1753391819552,10.47210291,3731.2,3731.1,1e-08]
[1753391820269,6.23010291,3731.2,3731.1,1e-08]
[1753391820473,10.47110291,3731.2,3731.1,0.91460001]
[1753391820873,10.47110291,3731.2,3731.1,1e-08]
[1753391821370,11.38140291,3731.2,3731.1,1e-08]
[1753391821570,11.53350291,3731.2,3731.1,1e-08]
[1753391822270,11.08170291,3731.2,3731.1,1e-08]
[1753391822773,10.62320291,3731.2,3731.1,1e-08]
[1753391822937,10.07320291,3731.2,3731.1,1e-08]
[1753391823141,10.62320291,3731.2,3731.1,1e-08]
[1753391823438,3.6844,3731.2,3731.1,1e-08]
[1753391823640,0.1344,3731.2,3731.1,0.91460001]
[1753391823838,0.1344,3731.2,3731.1,1.86150001]
[1753391824661,0.1344,3731.2,3731.1,1.68860001]
[1753391825059,0.71790128,3731.2,3731.1,1.68860001]
[1753391825652,6.39800419,3731.2,3731.1,1.68860001]
[1753391825851,6.36450291,3731.2,3731.1,0.48410001]
[1753391826767,3.6844,3731.2,3731.1,0.48410001]
[1753391827053,3.6844,3731.2,3731.1,0.91460001]
[1753391828065,3.1344,3731.2,3731.1,1.73000001]
[1753391828276,3.1344,3731.2,3731.1,1.90310001]
[1753391828866,3.1344,3731.2,3731.1,1.41900001]
[1753391829068,3.1344,3731.2,3731.1,1.90310001]
[1753391829268,3.1344,3731.2,3731.1,1.73000001]
[1753391831129,3.6844,3731.2,3731.1,1.29950001]
[1753391831766,3.6844,3731.2,3731.1,1.73000001]
[1753391835717,6.36450291,3731.2,3731.1,1e-08]
[1753391837316,3.6844,3731.2,3731.1,0.93510001]
[1753391837546,3.1344,3731.2,3731.1,1.76700001]
[1753391837754,3.6844,3731.2,3731.1,1.76700001]
[1753391837923,3.1344,3731.2,3731.1,1.76700001]
[1753391838309,3.6844,3731.2,3731.1,1.76700001]
[1753391839728,6.36450291,3731.2,3731.1,1e-08]
[1753391842440,3.6844,3731.2,3731.1,0.47780001]
[1753391842645,3.6844,3731.2,3731.1,0.93510001]
[1753391843181,6.36450291,3731.2,3731.1,0.93510001]
[1753391843704,6.36450291,3731.2,3731.1,0.47780001]
[1753391844169,3.6844,3731.2,3731.1,0.47780001]
[1753391844369,3.6844,3731.2,3731.1,0.93510001]
[1753391844867,6.36450291,3731.2,3731.1,0.93510001]
[1753391845544,3.6844,3731.2,3731.1,0.93510001]
[1753391846071,3.1344,3731.2,3731.1,1.73680001]
[1753391846255,0.1344,3731.3,3731.1,1.91058001]
[1753391846432,0.1344,3731.3,3731.2,1.7368]
[1753391846855,0.1344,3731.3,3731.2,5.9688]
[1753391851040,0.1344,3731.3,3731.2,8.64890291]
[1753391851240,0.1344,3731.3,3731.2,5.9688]
[1753391851666,0.1344,3731.3,3731.2,8.64890291]
[1753391851975,0.002,3732.0,3731.6,0.8024]
[1753391852180,0.002,3732.0,3731.7,4.23]
[1753391852515,0.6836,3731.8,3731.7,5.1651]
[1753391853047,0.55,3731.7,3731.6,0.8024]
[1753391853288,3.55,3731.7,3731.6,4.23]
[1753391853846,6.22974381,3731.7,3731.6,4.23]
[1753391854182,0.55,3731.5,3731.3,0.768]
[1753391854347,0.58349859,3731.5,3731.4,4.229]
[1753391854552,0.1336,3731.4,3731.3,1.7031]
[1753391854746,0.1336,3731.4,3731.3,5.9321]
[1753391854965,0.55,3731.2,3731.0,0.832]
[1753391855277,0.002,3732.0,3731.2,0.4778]
[1753391855441,0.1344,3731.3,3731.2,0.4778]
[1753391855838,0.1344,3731.3,3731.2,0.9351]
[1753391857783,3.0,3731.2,3731.1,1e-08]
[1753391857987,3.1344,3731.3,3731.1,4.22800001]
[1753391858283,0.1344,3731.3,3731.1,4.70580001]
[1753391858480,0.1344,3731.3,3731.1,0.45730001]
[1753391858682,0.1344,3731.3,3731.2,0.4778]
[1753391858683,0.6844,3731.3,3731.2,0.4778]
[1753391858887,3.0,3731.2,3731.1,4.68530001]
[1753391859078,3.0,3731.2,3731.1,4.22700001]
[1753391859079,2.68010291,3731.2,3731.1,4.22700001]
[1753391859596,3.0,3731.2,3731.1,1e-08]
[1753391859760,2.68010291,3731.2,3731.1,4.22700001]
[1753391859963,3.23010291,3731.2,3731.1,4.22700001]
[1753391860162,6.23010291,3731.2,3731.1,1e-08]
[1753391860361,6.23010291,3731.2,3731.1,4.22700001]
[1753391860986,6.23010291,3731.2,3731.1,1e-08]
[1753391862578,6.66370291,3731.2,3731.1,1e-08]
[1753391865368,11.38090291,3731.2,3731.1,1e-08]
[1753391867525,10.45510291,3731.2,3731.1,1e-08]
[1753391867895,0.1344,3731.3,3731.1,0.92720001]
[1753391868096,0.1344,3731.3,3731.2,1.7391]
[1753391875924,0.1336,3731.5,3731.3,2.68002858]
[1753391876122,0.1336,3731.5,3731.4,5.1482]
[1753391876619,0.1336,3731.5,3731.4,7.82815926]
[1753391876821,0.1336,3731.6,3731.4,8.96017512]
[1753391877007,0.1336,3731.6,3731.4,8.03297512]
[1753391877317,0.1336,3731.6,3731.5,0.9272]
[1753391878332,0.1336,3731.6,3731.5,4.42588744]
[1753391878508,0.002,3731.7,3731.6,2.67981562]
[1753391878711,0.002,3731.7,3731.6,4.86625398]
[1753391878893,0.002,3731.7,3731.6,3.93905398]
[1753391879092,0.002,3731.7,3731.6,4.86625398]
[1753391881120,0.002,3731.7,3731.5,0.8188]
[1753391881121,5.68174381,3731.7,3731.5,0.8188]
[1753391881321,3.1336,3731.6,3731.5,4.219]
[1753391881707,0.1336,3731.6,3731.5,4.219]
[1753391881891,0.1336,3731.6,3731.5,4.679]
[1753391882087,0.6836,3731.6,3731.5,4.219]
[1753391882292,0.55,3731.5,3731.1,1e-08]
[1753391882910,0.1344,3731.2,3731.1,0.46720001]
[1753391883419,0.1344,3731.2,3731.1,5.14620001]